bitfinex/quotes_ETHUSD_20220226
["timestamp","ask_amount","ask_price","bid_price","bid_amount"]
[1645881022788,0.67839969,2773.2,2772.2,3.704]
[1645881022989,0.67839969,2773.1,2772.3,1.20875169]
[1645881023189,0.67839969,2773.1,2772.8,0.00191535]
[1645881023390,0.67839969,2773.2,2772.8,0.00191535]
[1645881023990,0.67839969,2773.2,2772.3,1.20875169]
[1645881024190,0.67839969,2773.2,2772.3,1.57125169]
[1645881024391,0.67839969,2773.2,2772.9,0.00191528]
[1645881024591,0.90453292,2773.5,2772.9,0.00191528]
[1645881024592,0.67839969,2773.3,2772.9,0.00191528]
[1645881025258,0.67839969,2773.3,2772.3,1.20875169]
[1645881025452,0.67839969,2773.2,2772.3,1.20875169]
[1645881025654,0.67839969,2773.2,2773.0,0.00467712]
[1645881026055,0.67839969,2773.1,2773.0,0.00467712]
[1645881026455,0.67839969,2773.1,2772.3,1.20875169]
[1645881026655,0.67839969,2773.1,2772.9,0.00478842]
[1645881027457,0.07620972,2773.0,2772.9,0.00478842]
[1645881027760,0.07620972,2773.0,2772.2,3.704]
[1645881027957,0.07620972,2772.9,2772.4,0.01915721]
[1645881028161,0.07620972,2772.8,2772.4,0.01915721]
[1645881028358,0.07620972,2772.7,2772.4,0.01915721]
[1645881028558,0.67839969,2773.4,2772.4,0.01915721]
[1645881028775,0.0762011,2773.3,2772.4,0.01915721]
[1645881028976,0.0762011,2773.2,2772.3,3.8625]
[1645881029176,0.0762011,2773.2,2772.2,4.72413231]
[1645881029177,0.0762011,2773.1,2772.2,4.0665]
[1645881029376,11.99453292,2773.6,2772.2,3.704]
[1645881029377,0.0762011,2773.0,2772.2,3.704]
[1645881029580,0.67839969,2773.2,2772.2,3.704]
[1645881029779,0.75460079,2773.1,2772.2,3.704]
[1645881029979,0.0762011,2773.0,2772.2,3.704]
[1645881030181,0.0762011,2772.9,2772.2,4.80602315]
[1645881030383,0.0762011,2772.8,2772.5,0.00469157]
[1645881030581,0.67839969,2773.1,2772.5,0.00469157]
[1645881031280,0.67839969,2773.1,2772.1,0.25]
[1645881031483,0.67839969,2773.1,2772.7,0.00469146]
[1645881031683,0.75460079,2773.1,2772.7,0.00469146]
[1645881031879,0.0762011,2773.1,2772.7,0.00469146]
[1645881032080,0.0762011,2773.0,2772.7,0.00469146]
[1645881032432,0.0762011,2772.9,2772.1,1.55483731]
[1645881032627,0.0762011,2772.8,2772.1,1.55483731]
[1645881032827,2.20453292,2773.5,2772.7,0.00469143]
[1645881032828,0.67839969,2773.3,2772.7,0.00469143]
[1645881033427,0.75460695,2773.2,2772.7,0.00469143]
[1645881033628,0.75460695,2773.2,2772.1,1.30483731]
[1645881034631,0.75460695,2773.2,2772.0,3.75]
[1645881034930,0.75460695,2773.1,2771.9,3.8905]
[1645881035135,0.67839969,2773.1,2771.9,3.8905]
[1645881035535,0.75460695,2773.1,2771.9,4.253]
[1645881035732,0.67839969,2773.1,2771.9,4.253]
[1645881035932,0.3,2773.2,2772.0,1.14080926]
[1645881036172,0.3,2773.3,2772.0,1.14080926]
[1645881036372,0.3,2773.4,2772.0,1.14080926]
[1645881037575,0.3,2773.4,2772.6,0.00491188]
[1645881037576,11.39,2773.4,2772.6,0.00491188]
[1645881037775,1.3,2773.4,2772.6,0.00491188]
[1645881038179,3.5,2773.3,2772.6,0.00491188]
[1645881038577,3.5,2773.3,2772.0,1.14080926]
[1645881038578,15.59,2773.3,2772.0,1.14080926]
[1645881038779,15.59,2773.3,2772.8,0.00491167]
[1645881039179,4.5,2773.3,2772.8,0.00491167]
[1645881039379,1.0,2773.3,2772.8,0.00491167]
[1645881039779,1.0,2773.3,2772.0,1.50330926]
[1645881039780,4.8,2773.4,2772.0,1.50330926]
[1645881040034,4.8,2773.4,2772.9,0.00491159]
[1645881040241,1.3,2773.4,2772.9,0.00491159]
[1645881040637,0.3,2773.4,2772.9,0.00491159]
[1645881040839,1.2021913,2773.5,2772.0,1.50330926]
[1645881041042,2.073805,2773.8,2772.0,1.80330926]
[1645881041237,9.41400774,2774.2,2772.0,1.80330926]
[1645881041238,3.47290774,2774.2,2773.0,0.0049941]
[1645881041437,3.47290774,2774.2,2773.0,1.32557581]
[1645881041643,0.19410774,2774.2,2773.0,1.32557581]
[1645881042236,14.59,2774.1,2772.8,0.28807581]
[1645881042437,14.59,2774.1,2773.5,0.00499373]
[1645881042839,14.89,2774.1,2773.5,0.00499373]
[1645881043039,15.89,2774.1,2773.5,0.00499373]
[1645881043239,15.89,2774.1,2772.8,4.33897581]
[1645881043443,3.69410774,2774.0,2772.8,4.33897581]
[1645881043878,4.69410774,2774.0,2772.8,4.33897581]
[1645881044278,4.69410774,2774.0,2772.8,4.32780821]
[1645881045485,4.69410774,2774.0,2772.8,4.0509]
[1645881045684,3.69410774,2774.0,2772.8,4.0509]
[1645881046087,3.69410774,2774.0,2772.9,0.00499462]
[1645881046386,0.19410774,2774.0,2772.9,0.00499462]
[1645881046987,0.19410774,2774.0,2772.8,4.195]
[1645881047186,0.19410774,2774.0,2772.9,0.00499467]
[1645881047719,0.19410774,2774.0,2773.0,1.16661612]
[1645881047920,0.0199696,2774.1,2773.0,2.60541612]
[1645881048124,0.19658939,2774.4,2773.0,2.90541612]
[1645881048323,0.00248165,2774.4,2773.0,14.99541612]
[1645881048522,0.0199698,2774.1,2773.2,0.3625]
[1645881048724,0.0199698,2774.1,2773.2,0.6625]
[1645881049121,0.0199698,2774.1,2773.5,1.26405]
[1645881049322,0.00248165,2774.4,2773.5,1.26405]
[1645881049523,0.00248165,2774.4,2773.7,11.4525]
[1645881049722,0.01996979,2774.2,2773.9,0.3625]
[1645881050327,0.01996979,2774.2,2774.0,0.1441]
[1645881050630,0.00248165,2774.4,2774.1,1.43217142]
[1645881051381,0.00248165,2774.4,2774.1,1.06967142]
[1645881054783,0.00248165,2774.4,2773.8,4.0415]
[1645881055437,0.00248165,2774.4,2773.8,3.8974]
[1645881055840,0.00248165,2774.4,2773.8,4.8974]
[1645881056038,0.00248165,2774.4,2773.8,3.8974]
[1645881060684,0.00248165,2774.4,2773.6,10.5948]
[1645881061087,0.67976986,2773.9,2773.6,6.01956001]
[1645881061282,0.67976986,2773.9,2773.6,3.5422]
[1645881061486,0.67976986,2773.9,2773.2,1.2204]
[1645881061683,0.67976986,2773.9,2773.1,1.1727493]
[1645881061881,0.0761837,2773.8,2773.1,1.1727493]
[1645881062081,0.0761837,2773.7,2773.1,1.1727493]
[1645881062429,0.0761837,2773.6,2773.1,1.1727493]
[1645881062723,0.0761837,2773.5,2773.1,1.1727493]
[1645881062921,0.0761837,2773.4,2773.1,1.1727493]
[1645881063121,0.67976986,2773.9,2773.1,1.1727493]
[1645881063122,0.0761837,2773.3,2773.1,1.1727493]
[1645881063322,0.67976986,2773.9,2773.1,1.1727493]
[1645881063531,0.07618192,2773.8,2773.3,0.3625]
[1645881063729,0.07618192,2773.7,2773.5,0.3625]
[1645881063928,0.68225151,2774.4,2773.6,3.8625]
[1645881064127,0.01766807,2774.1,2773.6,3.8625]
[1645881064330,0.01766807,2774.1,2773.8,0.3625]
[1645881064529,0.07616836,2774.0,2773.8,0.3625]
[1645881065131,0.07616836,2773.9,2773.7,1.16387782]
[1645881065330,0.07616836,2773.8,2773.7,1.16387782]
[1645881065532,0.68225151,2774.4,2773.7,1.16387782]
[1645881065934,0.00248165,2774.4,2773.8,3.5]
[1645881066180,0.00248165,2774.4,2773.8,0.3625]
[1645881066381,0.07865001,2774.4,2773.8,0.3625]
[1645881066582,0.07616836,2774.3,2773.8,0.5066]
[1645881066784,0.07616836,2774.2,2773.8,0.5066]
[1645881066989,0.07616836,2774.1,2773.8,0.5066]
[1645881067185,0.00248165,2774.4,2773.8,11.5966]
[1645881067385,0.00248165,2774.4,2773.8,4.0066]
[1645881067586,0.00248165,2774.4,2773.8,0.5066]
[1645881067792,0.0786396,2774.4,2773.8,0.5066]
[1645881067989,0.07615795,2774.3,2774.2,1.10082754]
[1645881068390,0.00248165,2774.4,2774.2,1.10082754]
[1645881068989,0.00248165,2774.4,2774.1,1.182209]
[1645881069190,0.00248165,2774.4,2774.1,12.272209]
[1645881069389,0.00248165,2774.4,2774.1,2.182209]
[1645881069595,0.00248165,2774.4,2774.2,7.5717]
[1645881069788,0.00248165,2774.4,2774.3,0.1441]
[1645881070031,0.00248165,2774.4,2774.3,7.7156]
[1645881070233,0.00248165,2774.4,2774.3,8.7156]
[1645881070835,0.00248165,2774.4,2774.3,8.3531]
[1645881074273,8.165e-05,2774.4,2774.3,8.7156]
[1645881074673,8.165e-05,2774.4,2774.3,21.2386]
[1645881075480,8.165e-05,2774.4,2774.3,10.1486]
[1645881075680,8.165e-05,2774.4,2774.3,21.2386]
[1645881075980,0.00499833,2774.7,2774.6,1.26371]
[1645881076185,0.00499833,2774.7,2774.6,2.35101152]
[1645881076379,0.00499833,2774.7,2774.6,1.98851152]
[1645881076583,0.00499833,2774.7,2774.6,1.08730152]
[1645881076981,0.68339846,2775.5,2774.6,1.08730152]
[1645881077184,0.07614719,2775.4,2774.6,1.08730152]
[1645881077437,0.67976986,2775.5,2774.6,1.08730152]
[1645881077438,0.00499848,2774.8,2774.6,1.08730152]
[1645881078127,0.0036286,2775.4,2774.6,1.08730152]
[1645881078327,0.00499844,2774.8,2774.7,0.3625]
[1645881078730,0.0811435,2774.8,2774.4,0.5066]
[1645881078928,0.07614506,2774.7,2774.4,0.5066]
[1645881079128,0.07614506,2774.7,2774.5,7.2085]
[1645881079530,0.07614506,2774.6,2774.5,7.2085]
[1645881079729,0.00499853,2774.7,2774.5,7.2085]
[1645881079932,0.00499853,2774.7,2774.6,1.17775824]
[1645881080532,0.0036286,2775.3,2774.6,1.17775824]
[1645881080733,0.00499848,2774.8,2774.6,1.17775824]
[1645881080930,0.07614647,2774.7,2774.6,1.17775824]
[1645881081175,0.07614647,2774.7,2774.6,0.21275442]
[1645881081581,9.848e-05,2774.8,2774.7,0.3625]
[1645881081779,0.67976986,2775.6,2774.9,0.3625]
[1645881081780,0.0036286,2775.6,2774.9,0.3625]
[1645881081981,0.28854,2776.4,2775.1,11.4525]
[1645881081982,0.01107497,2775.2,2775.1,11.4525]
[1645881082183,0.01107497,2775.2,2775.1,18.8035]
[1645881082377,0.01107497,2775.2,2775.1,19.8035]
[1645881082579,0.01107497,2775.2,2775.1,20.8035]
[1645881082777,0.01107497,2775.2,2775.1,23.1651846]
[1645881082980,0.68339846,2776.3,2775.3,1.8017222]
[1645881083177,0.0036286,2776.0,2775.5,0.90085]
[1645881083378,0.07975374,2776.2,2775.5,0.90085]
[1645881084180,0.07975374,2776.2,2775.6,14.40544098]
[1645881084382,0.67976986,2776.3,2775.8,11.4525]
[1645881084383,0.0036286,2776.3,2775.8,11.4525]
[1645881084588,1.38384747,2777.1,2776.3,0.3625]
[1645881084788,1.35953972,2777.5,2776.6,7.5]
[1645881085050,2.76589953,2778.2,2776.6,7.5]
[1645881085051,1.35953972,2777.9,2776.7,11.4525]
[1645881085351,1.35953972,2777.9,2777.0,1.6867663]
[1645881085547,1.35953972,2777.9,2776.8,2.7010076]
[1645881085548,0.01,2777.4,2776.8,9.0031576]
[1645881085748,0.01,2777.4,2776.8,7.2025]
[1645881087750,0.01,2777.4,2777.3,1.27833241]
[1645881088778,0.01,2777.4,2776.9,5.639885]
[1645881089179,0.01,2777.4,2776.9,2.926]
[1645881089782,0.01,2777.4,2776.9,4.05760704]
[1645881090183,0.01,2777.4,2776.9,2.926]
[1645881090386,0.00499789,2777.3,2776.9,14.3785]
[1645881090586,0.00499789,2777.3,2776.9,18.77894]
[1645881090783,1.35953972,2778.1,2776.9,18.77894]
[1645881090784,0.00361241,2778.2,2777.2,5.0]
[1645881090987,1.67507925,2780.0,2778.1,0.01296951]
[1645881091186,1.67507925,2780.0,2779.0,0.0126548]
[1645881091187,1.3500221,2779.8,2779.0,0.0126548]
[1645881091385,0.04035807,2779.7,2779.1,7.6296]
[1645881091784,0.04149491,2779.9,2779.1,18.7196]
[1645881091983,0.04149491,2779.9,2779.1,8.52932]
[1645881092187,0.04092649,2779.8,2779.1,8.52932]
[1645881092430,5.8813654,2780.1,2779.2,11.8996184]
[1645881092630,5.8813654,2780.1,2779.3,0.433]
[1645881092828,5.8813654,2780.1,2779.4,4.85975]
[1645881093028,5.8813654,2780.1,2779.6,12.78884]
[1645881093230,5.8813654,2780.1,2779.7,0.433]
[1645881093430,5.7313654,2780.1,2779.5,7.1955]
[1645881094033,3.5,2780.0,2779.5,7.1955]
[1645881094231,3.5,2780.0,2779.5,4.76195125]
[1645881094232,0.00499006,2779.9,2779.5,4.76195125]
[1645881095031,5.7313654,2780.1,2779.5,4.76195125]
[1645881096288,3.5,2780.0,2779.5,4.76195125]
[1645881096488,5.7313654,2780.1,2779.5,4.76195125]
[1645881096686,5.7313654,2780.1,2779.6,3.5]
[1645881096888,5.7313654,2780.1,2779.6,0.8995]
[1645881097088,5.7313654,2780.1,2779.8,11.09]
[1645881097487,5.7313654,2780.1,2779.7,1.0]
[1645881098093,5.7313654,2780.1,2779.6,0.1438]
[1645881098094,5.0,2780.0,2779.6,0.1438]
[1645881098292,21.58453774,2780.0,2779.6,0.1438]
[1645881098494,5.92753774,2780.0,2779.5,4.76195125]
[1645881098690,8.02802774,2780.0,2779.5,4.76195125]
[1645881098889,0.00498625,2779.9,2779.5,4.76195125]
[1645881099091,0.90018,2779.8,2779.5,4.76195125]
[1645881099293,1.20018,2779.8,2779.5,4.76195125]
[1645881099694,2.10044,2779.8,2779.5,4.76195125]
[1645881100135,2.10044,2779.8,2779.7,1.5]
[1645881100136,0.00498637,2779.8,2779.7,1.5]
[1645881100939,7.5,2779.6,2778.9,0.25]
[1645881101140,7.5,2779.6,2778.0,0.1438]
[1645881101141,0.3625,2779.4,2778.0,0.1438]
[1645881101341,0.3625,2779.4,2778.1,0.25]
[1645881101342,0.9003677,2779.1,2778.1,0.25]
[1645881101539,3.5,2779.0,2778.1,0.25]
[1645881101738,0.0035962,2779.0,2778.0,0.1438]
[1645881102539,0.00498732,2778.6,2778.0,0.1438]
[1645881103339,0.0035962,2779.0,2778.0,0.1438]
[1645881103779,0.00498749,2778.4,2778.0,0.1438]
[1645881104678,3.8625,2779.0,2778.0,0.1438]
[1645881104874,0.00498757,2778.3,2778.0,0.1438]
[1645881105879,3.5,2778.3,2778.0,0.1438]
[1645881106184,0.90069,2778.2,2776.8,4.1469]
[1645881106389,1.26324,2778.0,2776.8,4.1469]
[1645881106684,3.8625,2777.9,2776.8,4.1469]
[1645881106883,1.2632615,2777.8,2776.6,2.9451]
[1645881107085,0.0035962,2777.7,2776.6,2.9451]
[1645881107283,0.00629508,2777.8,2776.6,14.0351]
[1645881107528,0.00269888,2777.8,2776.7,11.69396413]
[1645881107734,0.00269888,2777.8,2777.3,0.3991]
[1645881107931,0.00269888,2777.8,2777.2,11.09]
[1645881108133,0.3625,2778.9,2777.2,11.09]
[1645881108331,0.3625,2778.9,2777.2,12.09]
[1645881108532,0.00499134,2777.8,2777.4,0.00499211]
[1645881109036,0.00499134,2777.8,2777.5,18.653]
[1645881109434,0.0035962,2778.8,2777.5,18.653]
[1645881109832,0.00499144,2777.8,2777.5,7.56799203]
[1645881110033,0.00499144,2777.8,2777.5,18.65799203]
[1645881110633,0.0035962,2778.8,2777.5,7.2005]
[1645881110836,0.00499144,2777.8,2777.5,7.20549203]
[1645881111033,9.144e-05,2777.8,2777.5,19.65799203]
[1645881111286,9.144e-05,2777.8,2777.7,17.4525]
[1645881111489,0.01996076,2778.5,2777.9,11.4525]
[1645881111687,0.01996076,2778.5,2778.1,11.4525]
[1645881111885,0.0035962,2779.2,2778.3,11.4525]
[1645881112186,0.0035962,2779.9,2779.0,1.4367278]
[1645881112785,5.7313654,2780.1,2779.0,1.4367278]
[1645881112983,5.7313654,2780.1,2778.6,0.89988]
[1645881113186,5.7313654,2780.1,2778.4,8.46799997]
[1645881113187,0.3625,2779.9,2778.4,8.46799997]
[1645881113385,0.3625,2779.9,2778.5,1.0]
[1645881113584,0.3625,2779.9,2778.5,1.17997]
[1645881113786,0.3625,2779.9,2778.6,4.39983]
[1645881113986,5.25210309,2780.1,2779.4,1.24195994]
[1645881114291,5.25210309,2780.1,2779.2,0.4303]
[1645881114486,0.0049937,2779.4,2779.2,0.4303]
[1645881115332,0.0049937,2779.4,2779.3,1.36705684]
[1645881115532,5.25210309,2780.1,2779.3,1.36705684]
[1645881115833,0.00269548,2779.4,2779.3,1.36705684]
[1645881116235,0.00269548,2779.4,2778.7,2.9327]
[1645881116635,5.61460309,2780.1,2778.7,2.9327]
[1645881116836,0.00269548,2779.2,2778.7,2.9327]
[1645881117438,0.00269548,2779.2,2778.6,1.18774709]
[1645881117638,0.00269548,2779.2,2778.4,7.1984]
[1645881117939,0.3625,2779.7,2778.4,7.1984]
[1645881118138,0.00269548,2779.0,2778.4,7.1984]
[1645881118543,9.548e-05,2779.0,2778.6,0.37479481]
[1645881118787,9.548e-05,2779.0,2778.8,0.3625]
[1645881118988,1.1743,2780.6,2779.0,0.3625]
[1645881119187,1.1743,2780.6,2779.0,11.4525]
[1645881119589,0.0035781,2780.0,2779.0,11.4525]
[1645881120294,0.0035781,2780.0,2779.4,1.63394496]
[1645881120490,0.0535781,2780.9,2779.6,11.4525]
[1645881120690,0.05,2780.9,2779.8,0.3625]
[1645881120889,0.05,2780.9,2779.4,1.27144496]
[1645881121090,5.05,2780.9,2779.1,3.933]
[1645881121293,5.05,2780.9,2779.0,4.4116]
[1645881121294,0.0035781,2780.0,2779.0,4.4116]
[1645881121490,0.0035781,2780.0,2779.1,0.89976]
[1645881121889,0.0035781,2780.0,2779.2,0.3625]
[1645881122292,0.0035781,2780.0,2779.4,1.26558908]
[1645881122544,0.0035781,2780.6,2779.4,1.26558908]
[1645881122748,0.0035781,2780.6,2779.0,5.7741]
[1645881122945,0.00499767,2779.8,2779.1,11.4525]
[1645881123148,0.00499767,2779.8,2779.2,1.79927]
[1645881123345,0.00499767,2779.8,2779.2,2.16177]
[1645881123750,0.0035781,2780.0,2779.0,4.1616]
[1645881124048,0.00269003,2779.6,2779.0,4.1616]
[1645881124448,0.00269003,2779.6,2778.9,0.1439]
[1645881124651,0.00269003,2779.6,2778.7,0.1439]
[1645881124851,0.9002806,2779.4,2778.7,0.1439]
[1645881125050,0.9002806,2779.4,2778.4,4.0305]
[1645881125051,1.8005706,2779.4,2778.4,4.0305]
[1645881125252,0.01275944,2778.8,2778.4,4.0305]
[1645881125452,5.76307,2778.7,2777.7,0.1439]
[1645881125653,5.0,2778.4,2777.7,0.1439]
[1645881125853,5.0,2778.4,2776.8,3.5]
[1645881125854,0.90076,2778.0,2776.8,3.5]
[1645881126054,0.90076,2778.0,2776.6,3.4083]
[1645881126055,0.1424,2777.9,2776.6,3.4083]
[1645881126301,0.1459781,2777.9,2776.6,3.7708]
[1645881126495,0.1459781,2777.9,2776.6,3.4083]
[1645881126891,0.4459781,2777.9,2776.6,3.4083]
[1645881127094,1.3467377,2777.9,2776.6,3.4083]
[1645881127295,0.3625,2777.8,2776.7,1.153785]
[1645881127492,0.0035781,2777.7,2776.7,1.153785]
[1645881127693,0.0035781,2777.7,2777.1,0.00499848]
[1645881127892,1.3431596,2777.9,2777.1,0.00499848]
[1645881127893,0.0035781,2777.8,2777.1,0.00499848]
[1645881128097,0.9008847,2777.6,2777.1,0.00499848]
[1645881128292,1.04323,2777.7,2777.1,0.00499848]
[1645881128293,0.1424,2777.7,2777.1,0.00499848]
[1645881128493,0.0035781,2777.8,2777.1,0.00499848]
[1645881128695,0.1424,2778.3,2776.8,0.3625]
[1645881128696,0.0035781,2778.3,2777.0,0.3625]
[1645881128894,0.0035781,2778.6,2777.2,0.3625]
[1645881129092,0.0035781,2778.6,2777.3,3.86749835]
[1645881129292,0.16238096,2779.0,2777.3,4.76776175]
[1645881129293,0.0035781,2778.8,2777.3,4.76776175]
[1645881129941,0.0035781,2778.8,2777.3,4.7627634]
[1645881130144,0.1424,2778.7,2777.7,0.00499811]
[1645881130344,0.0035781,2778.6,2777.7,0.00499811]
[1645881130748,0.1424,2778.8,2777.7,0.00499811]
[1645881130749,0.0035781,2778.8,2777.7,0.00499811]
[1645881130947,0.0035781,2778.8,2777.6,11.2339]
[1645881131148,0.0035781,2779.0,2777.6,0.1439]
[1645881131348,0.0035781,2779.1,2777.6,0.1439]
[1645881131546,0.01998387,2779.0,2777.7,0.00499821]
[1645881131749,0.01998387,2779.0,2778.0,1.24733106]
[1645881131951,0.01998387,2779.0,2777.7,0.00499821]
[1645881132247,0.0035781,2779.1,2777.6,0.1439]
[1645881132450,0.00499604,2779.1,2777.7,0.00499855]
[1645881132650,1.27919906,2779.1,2777.7,0.00499855]
[1645881132849,0.0035781,2779.0,2777.7,0.00499855]
[1645881133348,0.0035781,2779.0,2777.7,1.10778748]
[1645881133551,0.0035781,2779.0,2777.7,1.10278893]
[1645881133788,0.02356274,2779.0,2777.7,1.10778733]
[1645881134489,0.16596274,2779.0,2777.7,1.10778733]
[1645881134687,0.16596274,2779.0,2777.7,1.10278893]
[1645881134688,0.3625,2778.9,2777.7,1.10278893]
[1645881134889,0.0035781,2778.8,2777.7,1.10278893]
[1645881135094,0.0035781,2778.8,2777.8,0.1439]
[1645881135694,0.915281,2779.0,2777.8,0.1439]
[1645881135892,1.19529636,2779.0,2777.8,0.1439]
[1645881136095,0.32356255,2779.0,2777.8,0.1439]
[1645881136493,0.91528081,2779.0,2777.8,0.1439]
[1645881136696,0.91528081,2779.0,2778.0,0.90013]
[1645881136894,0.02356255,2779.0,2777.8,0.1439]
[1645881137093,0.00499585,2779.1,2777.8,0.1439]
[1645881137094,1.25779636,2779.1,2777.8,0.1439]
[1645881137292,0.89171826,2779.0,2777.8,0.1439]
[1645881137533,0.3660781,2778.9,2777.8,0.1439]
[1645881137734,0.05221551,2779.2,2777.9,6.0]
[1645881137934,1.05221551,2779.3,2777.9,6.0]
[1645881138131,0.5049,2779.2,2777.9,6.0]
[1645881138332,0.4424,2779.2,2777.9,6.0]
[1645881138732,0.4424,2779.2,2778.1,1.15539115]
[1645881138934,0.1424,2779.2,2777.9,6.0]
[1645881139135,0.5049,2779.5,2777.9,6.0]
[1645881139334,0.8049,2779.5,2777.9,6.90016]
[1645881139735,0.8049,2779.5,2778.6,0.00232221]
[1645881139933,0.9002724,2779.4,2778.6,0.00232221]
[1645881140139,0.4424,2779.3,2778.6,0.00232221]
[1645881140538,0.1424,2779.3,2778.6,0.00232221]
[1645881140740,2.8514,2779.6,2778.0,4.2564]
[1645881140940,7.12303652,2779.9,2778.8,0.002322]
[1645881140941,5.3396,2779.9,2778.8,0.002322]
[1645881141383,5.39450309,2780.1,2778.8,0.002322]
[1645881141785,0.3625,2780.0,2778.9,1.20925045]
[1645881141988,0.3625,2780.0,2778.6,8.4311]
[1645881142190,0.00499264,2779.6,2779.0,0.00499377]
[1645881142989,2.17078108,2779.9,2778.7,3.6439]
[1645881143189,2.17078108,2780.0,2778.7,3.6439]
[1645881143389,0.00267454,2779.4,2778.7,4.54379]
[1645881143589,0.00267454,2779.4,2778.7,1.04379]
[1645881143787,0.00267454,2779.4,2778.7,4.54379]
[1645881144187,0.00267454,2779.4,2778.7,4.72376]
[1645881144390,5.25210309,2780.1,2778.8,0.3625]
[1645881144592,0.00499614,2779.2,2779.0,0.89979]
[1645881144788,0.00499614,2779.2,2779.1,0.1439]
[1645881145441,0.0035602,2780.0,2779.1,1.34926278]
[1645881146141,0.00499614,2779.3,2779.1,1.34926278]
[1645881146741,0.0035602,2780.0,2779.1,1.34926278]
[1645881146944,0.00267481,2779.3,2778.8,0.1439]
[1645881147945,0.0035602,2780.0,2778.8,0.1439]
[1645881148155,0.00267476,2779.2,2778.8,0.1439]
[1645881148346,0.00267476,2779.2,2778.8,0.5064]
[1645881148546,0.00267476,2779.2,2778.8,0.1439]
[1645881149183,0.0035602,2780.0,2779.3,1.24334442]
[1645881149382,0.00499961,2779.2,2778.9,0.00500029]
[1645881149988,9.961e-05,2779.2,2778.9,0.36750029]
[1645881150188,9.961e-05,2779.2,2779.1,0.3625]
[1645881150387,0.0035602,2779.9,2779.3,0.3625]
[1645881150587,5.25210309,2780.1,2779.3,4.5955]
[1645881150792,0.05,2780.9,2779.5,11.7525]
[1645881150990,0.00354305,2780.8,2779.7,11.64399446]
[1645881151191,0.05,2780.9,2780.4,0.89936]
[1645881152195,0.05,2780.9,2780.2,1.42284993]
[1645881152451,0.05,2780.9,2780.2,2.32226993]
[1645881152634,0.05,2780.9,2780.2,1.42284993]
[1645881153038,0.05,2780.9,2780.0,6.2915]
[1645881153238,0.72086137,2781.5,2780.3,11.09]
[1645881153443,0.01221795,2782.1,2780.3,11.09]
[1645881153444,0.01208623,2784.1,2782.3,0.37578024]
[1645881153658,0.70667985,2784.4,2783.5,5.0]
[1645881153842,2.11977744,2784.3,2784.1,1.0]
[1645881154040,5.8813654,2786.7,2784.2,12.27216579]
[1645881154241,1.42219172,2786.7,2786.4,0.3042]
[1645881154438,1.42219172,2786.7,2786.5,7.6105]
[1645881154638,0.89678495,2787.2,2786.5,7.6105]
[1645881154837,0.52556276,2789.4,2786.5,7.6105]
[1645881154838,0.52556276,2789.4,2787.1,0.01207224]
[1645881155041,0.52556276,2789.4,2787.2,0.433]
[1645881155242,0.52556276,2789.4,2786.5,7.1775]
[1645881155243,5.0,2787.3,2786.5,7.1775]
[1645881155445,0.00266931,2787.5,2786.5,7.1775]
[1645881155649,0.04206333,2787.2,2786.5,7.1775]
[1645881155846,0.05151029,2788.0,2786.5,7.1775]
[1645881155847,0.04473264,2787.7,2786.5,7.1775]
[1645881156386,0.04473264,2787.7,2786.6,3.933]
[1645881156785,0.04473264,2787.7,2786.7,7.1769]
[1645881157086,4.75964138,2788.7,2786.7,7.1769]
[1645881157285,1.31149919,2787.8,2786.7,7.1769]
[1645881157485,3.82948455,2788.6,2786.7,7.1769]
[1645881157486,1.08647404,2787.2,2786.7,7.1769]
[1645881157689,1.08647404,2787.2,2786.0,0.25]
[1645881157690,0.1424,2787.1,2786.0,0.25]
[1645881157888,0.1424,2787.1,2785.6,0.24035862]
[1645881157889,4.75964138,2786.9,2785.6,0.24035862]
[1645881158086,1.08647404,2787.2,2785.8,3.5]
[1645881158087,4.0754,2786.8,2785.8,3.5]
[1645881158285,4.0754,2786.8,2785.1,0.25]
[1645881158286,5.75964138,2786.3,2785.1,0.25]
[1645881158485,1.26350796,2786.1,2785.1,0.25]
[1645881158688,5.06350796,2786.1,2785.1,0.25]
[1645881158886,5.06350796,2786.1,2784.4,3.1561]
[1645881158887,4.75964138,2785.9,2784.4,3.1561]
[1645881159087,0.13288449,2785.8,2784.6,4.0]
[1645881159286,0.13288449,2785.8,2784.6,0.5]
[1645881159287,1.0,2785.3,2784.6,0.5]
[1645881159486,0.42834388,2785.4,2784.6,0.5]
[1645881159686,0.00351148,2785.7,2784.6,0.5]
[1645881159938,0.433,2786.2,2784.6,0.5]
[1645881159939,0.004639,2784.7,2784.6,0.5]
[1645881160133,0.004639,2784.7,2784.6,3.5]
[1645881160333,0.004639,2784.7,2784.5,0.25321954]
[1645881160534,0.004639,2784.7,2784.5,0.01286092]
[1645881160735,1.05747144,2784.6,2784.0,0.01304799]
[1645881160934,0.004639,2784.7,2784.0,0.01304799]
[1645881161237,0.004639,2784.7,2784.4,0.24035862]
[1645881161936,0.004639,2784.7,2784.0,0.01304799]
[1645881162437,0.004639,2784.7,2783.4,0.01280025]
[1645881162640,0.004639,2784.7,2784.4,0.24035862]
[1645881162835,0.00351148,2785.1,2784.6,0.24035862]
[1645881163037,0.00351148,2786.8,2785.0,0.24035862]
[1645881163236,0.00351148,2785.6,2785.0,0.24035862]
[1645881163436,0.433,2786.6,2784.8,0.24035862]
[1645881163683,0.433,2786.6,2784.6,0.01200584]
[1645881163684,1.2409851,2785.2,2784.4,0.1434]
[1645881163988,1.2409851,2785.2,2784.5,7.1818]
[1645881164585,1.2409851,2785.2,2783.5,3.5]
[1645881164586,6.43362648,2785.2,2783.5,3.5]
[1645881164787,0.00351148,2785.1,2783.1,0.25]
[1645881164987,0.00351148,2785.1,2783.1,3.99035862]
[1645881164988,1.0,2784.9,2783.1,3.99035862]
[1645881165189,0.3625,2784.7,2783.4,1.71998359]
[1645881165387,0.13631148,2784.6,2783.4,1.47962497]
[1645881165790,1.0,2784.3,2783.4,1.47962497]
[1645881166091,1.733,2784.3,2783.4,1.47962497]
[1645881166288,1.733,2784.3,2783.9,0.00241048]
[1645881166687,1.43584302,2784.2,2783.9,0.00241048]
[1645881167290,1.43584302,2784.2,2783.4,1.47962497]
[1645881167538,1.4393545,2784.2,2783.9,0.00500494]
[1645881167748,1.43584302,2784.2,2783.9,0.00500494]